bitfinex/quotes_ETHUSD_20220212
["timestamp","ask_amount","ask_price","bid_price","bid_amount"]
[1644681197733,1.05492679,2884.2,2883.3,0.03801376]
[1644681197734,0.65802664,2884.1,2883.3,0.03801376]
[1644681198531,0.65802664,2884.1,2883.2,0.5749948]
[1644681198734,0.65802664,2884.1,2883.6,0.00950267]
[1644681198735,3.52455509,2884.0,2883.6,0.00950267]
[1644681198984,0.65802664,2883.8,2883.6,0.00950267]
[1644681199184,4.44494373,2883.7,2883.6,0.00950267]
[1644681199382,1.35447322,2882.7,2882.0,14.4885]
[1644681199582,1.35447322,2882.7,2882.6,0.1734]
[1644681199782,1.35447322,2882.7,2882.6,0.6911533]
[1644681199983,1.35447322,2882.7,2882.6,0.8645533]
[1644681200385,1.35447322,2882.7,2882.6,1.1645533]
[1644681201088,1.35447322,2882.7,2882.6,0.8645533]
[1644681201984,1.35447322,2882.7,2882.6,0.6911533]
[1644681202487,1.35447322,2882.7,2882.6,0.8645533]
[1644681202921,1.35447322,2882.7,2882.6,0.6911533]
[1644681204722,1.35447322,2882.7,2882.5,0.00840394]
[1644681205124,0.77823829,2882.6,2882.5,0.00840394]
[1644681205727,0.77823829,2882.6,2882.0,3.229]
[1644681205928,1.64612829,2882.6,2882.4,0.00840423]
[1644681206128,0.77823829,2882.5,2882.4,0.00840423]
[1644681206579,0.77823829,2882.6,2882.4,0.00840423]
[1644681206776,1.35447322,2882.7,2882.4,0.00840423]
[1644681206777,0.77715322,2882.5,2882.4,0.00840423]
[1644681206976,0.77715322,2882.5,2882.0,3.26262198]
[1644681206977,0.77715322,2882.5,2882.0,3.229]
[1644681207177,1.35447322,2882.7,2882.3,0.00840453]
[1644681207377,0.77717111,2882.6,2882.3,0.00840453]
[1644681208178,0.77717111,2882.6,2882.0,3.229]
[1644681208377,1.35447322,2882.7,2882.3,0.00777217]
[1644681208578,0.77623668,2882.6,2882.3,0.00777217]
[1644681209184,1.35447322,2882.7,2882.3,0.00777217]
[1644681209681,0.77091384,2882.6,2882.3,0.00777217]
[1644681209882,1.35447322,2882.7,2882.3,0.00777217]
[1644681210625,1.35447322,2882.7,2882.0,0.50937418]
[1644681210826,1.35447322,2882.7,2882.1,0.69075975]
[1644681211026,1.35447322,2882.7,2882.5,0.02472969]
[1644681211433,2.435e-05,2883.0,2882.6,0.17209129]
[1644681211630,2.435e-05,2883.0,2882.7,0.5]
[1644681212028,2.435e-05,2883.0,2882.8,0.17209129]
[1644681212728,2.435e-05,2883.0,2882.9,0.68138993]
[1644681212930,2.435e-05,2883.0,2882.9,0.1734]
[1644681213129,2.435e-05,2883.0,2882.9,0.34549129]
[1644681215380,2.435e-05,2883.0,2882.9,4.3849806]
[1644681215680,2.435e-05,2883.0,2882.9,12.03755745]
[1644681215881,2.435e-05,2883.0,2882.9,13.06228326]
[1644681216079,2.435e-05,2883.0,2882.9,12.34700641]
[1644681216279,2.435e-05,2883.0,2882.9,9.52302152]
[1644681216579,2.435e-05,2883.0,2882.9,10.23118328]
[1644681216781,2.435e-05,2883.0,2882.9,8.8075171]
[1644681217179,2.435e-05,2883.0,2882.9,7.8075171]
[1644681217380,2.435e-05,2883.0,2882.9,7.3075171]
[1644681218023,2.435e-05,2883.0,2882.9,7.1341171]
[1644681219125,2.435e-05,2883.0,2882.9,7.3075171]
[1644681219323,0.00950574,2883.2,2883.0,2.65077565]
[1644681219529,0.75198358,2883.1,2883.0,0.17417565]
[1644681219724,0.75198358,2883.1,2883.0,0.00077565]
[1644681220529,0.00950599,2883.2,2883.0,0.00077565]
[1644681220732,0.75198358,2883.1,2883.0,0.00077565]
[1644681221674,0.00950599,2883.2,2883.0,0.00077565]
[1644681221876,0.75198358,2883.1,2883.0,0.00077565]
[1644681222076,0.00950599,2883.2,2883.0,0.00077565]
[1644681222274,0.75198358,2883.1,2883.0,0.00077565]
[1644681222676,0.75198358,2883.6,2883.0,0.00077565]
[1644681222977,0.65802664,2883.9,2883.0,0.00867391]
[1644681222978,0.00950159,2883.2,2883.0,0.00867391]
[1644681223175,0.00950159,2883.2,2883.1,0.53866499]
[1644681223775,0.75850378,2883.2,2883.1,0.53866499]
[1644681223976,0.00950154,2883.3,2883.1,0.53866499]
[1644681224176,0.75850378,2883.2,2883.1,0.53866499]
[1644681225229,0.009494,2883.3,2883.1,0.53866499]
[1644681225428,0.009494,2883.3,2883.0,0.00867391]
[1644681225429,0.75850378,2883.2,2883.0,0.00867391]
[1644681225828,0.75850378,2883.2,2883.0,0.03339875]
[1644681226229,0.75850378,2883.2,2883.0,0.02550049]
[1644681226432,0.75850378,2883.2,2883.0,0.03340187]
[1644681226433,0.75850378,2883.1,2883.0,0.03340187]
[1644681226828,0.00949498,2883.2,2883.0,0.03340187]
[1644681227028,0.75850378,2883.1,2883.0,0.03340187]
[1644681227431,0.1734,2883.6,2883.0,0.02550049]
[1644681227432,0.75850378,2883.5,2883.0,0.02550049]
[1644681227630,0.00949485,2883.2,2883.0,0.02550049]
[1644681227829,0.75850378,2883.1,2883.0,0.02550049]
[1644681228332,0.00949485,2883.2,2883.0,0.02550049]
[1644681228533,0.75850378,2883.1,2883.0,0.02550049]
[1644681228876,0.0095024,2883.2,2883.0,0.02550049]
[1644681229076,0.75850378,2883.1,2883.0,0.02550049]
[1644681229275,0.0095024,2883.2,2883.0,0.02550049]
[1644681229580,0.75850378,2883.1,2883.0,0.02550049]
[1644681230077,0.00950234,2883.2,2883.0,0.03340126]
[1644681230279,0.75850378,2883.1,2883.0,0.03340126]
[1644681230679,0.00950234,2883.2,2883.0,0.03340126]
[1644681230878,0.75850378,2883.1,2883.0,0.03340126]
[1644681231083,0.75850378,2883.1,2883.0,0.02550049]
[1644681231279,0.65802664,2883.6,2883.0,0.02550049]
[1644681231280,0.00950221,2883.2,2883.0,0.02550049]
[1644681231483,0.75850378,2883.1,2883.0,0.02550049]
[1644681231679,0.00950221,2883.2,2883.0,0.02550049]
[1644681231880,0.75850378,2883.1,2883.0,0.02550049]
[1644681232480,0.65802664,2883.5,2883.0,0.02550049]
[1644681232481,0.00950234,2883.2,2883.0,0.03340126]
[1644681232729,0.75850378,2883.1,2883.0,0.03340126]
[1644681233126,0.00950234,2883.2,2883.0,0.03340126]
[1644681233326,0.75850378,2883.1,2883.0,0.02550049]
[1644681233727,0.65802664,2883.6,2883.0,0.02550049]
[1644681233728,0.00950225,2883.2,2883.0,0.02550049]
[1644681233927,0.75850378,2883.1,2883.0,0.72505474]
[1644681234327,0.00950225,2883.2,2883.0,0.89714603]
[1644681234530,0.75850378,2883.1,2883.0,0.37099178]
[1644681234726,0.65802664,2883.7,2883.0,1.07062894]
[1644681234927,0.65802664,2883.7,2883.0,3.99116086]
[1644681234928,2.25e-06,2883.2,2883.0,3.99116086]
[1644681235128,2.25e-06,2883.2,2883.1,5.11583607]
[1644681235333,2.25e-06,2883.2,2883.1,6.28923607]
[1644681235530,2.25e-06,2883.2,2883.1,6.46132736]
[1644681235731,0.65802664,2884.0,2883.1,6.46132736]
[1644681236031,0.65802664,2884.0,2883.2,1.87275245]
[1644681236232,0.65802664,2884.0,2883.4,0.60944905]
[1644681236479,0.65802664,2884.0,2883.5,4.26195245]
[1644681236480,0.75850378,2883.9,2883.5,4.26195245]
[1644681236678,0.75850378,2883.8,2883.5,3.73459129]
[1644681236884,0.75850378,2883.7,2883.5,0.17209129]
[1644681237085,0.75850378,2883.6,2883.5,0.17209129]
[1644681237285,0.75850378,2883.6,2883.5,0.76463541]
[1644681237485,0.65802664,2884.0,2883.5,1.46919633]
[1644681237685,0.65802664,2884.0,2883.5,4.28428135]
[1644681237889,0.65802664,2884.1,2883.6,1.0]
[1644681238087,0.65802664,2883.9,2883.6,1.0]
[1644681238289,0.65803042,2883.9,2883.7,3.84696921]
[1644681238488,0.65802664,2884.3,2883.8,1.5]
[1644681238686,0.65802664,2884.3,2883.9,3.60636537]
[1644681238887,0.65802664,2884.3,2884.0,1.6733]
[1644681239287,0.65802664,2884.3,2884.0,0.67209129]
[1644681239489,0.65802664,2884.3,2884.2,0.64057398]
[1644681239690,0.66752814,2884.3,2884.2,0.64057398]
[1644681239889,0.0095015,2884.3,2884.1,0.1733]
[1644681240123,0.0095015,2884.3,2883.9,0.1733]
[1644681240328,0.66143586,2884.1,2883.6,0.17209129]
[1644681240531,0.66143586,2884.0,2883.6,0.20093128]
[1644681240927,0.66143586,2884.1,2883.6,0.20093128]
[1644681241228,0.66143586,2884.0,2883.6,0.20093128]
[1644681241428,0.66143586,2883.9,2883.6,0.20093128]
[1644681242029,0.66143586,2883.7,2883.6,0.02883999]
[1644681242227,0.66143586,2883.8,2883.6,0.02883999]
[1644681243031,0.66143586,2883.7,2883.6,0.02883999]
[1644681243228,0.88162679,2884.0,2883.6,0.02883999]
[1644681243229,0.66143586,2883.8,2883.6,0.02883999]
[1644681243427,0.67112385,2883.8,2883.6,0.02883999]
[1644681244173,0.66143586,2883.8,2883.6,0.02883999]
[1644681244372,0.66143586,2883.9,2883.6,0.02883999]
[1644681244574,0.00946583,2883.8,2883.6,0.02883999]
[1644681245378,0.66143586,2883.9,2883.6,0.02883999]
[1644681245779,0.00946583,2883.8,2883.6,0.02883999]
[1644681245978,0.00946583,2883.8,2883.3,0.76403922]
[1644681246578,0.66143586,2883.9,2883.3,0.76403922]
[1644681246778,0.00946595,2883.7,2883.3,0.76403922]
[1644681247828,0.66143586,2883.9,2883.3,0.76403922]
[1644681248029,0.66143586,2883.9,2883.8,0.67474117]
[1644681248430,0.66143586,2884.0,2883.8,0.67474117]
[1644681249231,0.67094287,2884.0,2883.8,0.67474117]
[1644681250031,0.67094287,2884.0,2883.3,2.1466]
[1644681250237,0.66143586,2883.9,2883.3,2.1466]
[1644681250436,0.66143586,2883.9,2883.2,0.02953565]
[1644681250840,0.66143586,2883.9,2883.4,0.02884225]
[1644681251038,0.66143586,2883.9,2883.5,0.62840449]
[1644681251673,0.67093572,2883.8,2883.5,0.62840449]
[1644681252773,0.67093576,2883.8,2883.5,0.62840449]
[1644681252973,0.0094999,2883.8,2883.5,0.62840449]
[1644681253575,0.67093576,2883.8,2883.5,0.62840449]
[1644681253775,0.66143586,2883.9,2883.5,0.80170449]
[1644681253977,0.66143586,2883.9,2883.5,0.62840449]
[1644681254175,0.0094999,2883.8,2883.5,0.62840449]
[1644681254976,0.66143586,2883.7,2883.4,0.02884225]
[1644681255833,0.66143586,2883.7,2883.1,0.52757884]
[1644681256036,0.66143586,2883.6,2883.2,0.62272476]
[1644681256434,0.00950141,2883.5,2883.2,0.62272476]
[1644681256633,0.67093727,2883.5,2883.2,0.62272476]
[1644681257037,0.00950141,2883.5,2883.2,0.62272476]
[1644681257436,0.66143586,2883.6,2883.2,0.62272476]
[1644681257634,0.88162679,2883.8,2883.2,0.62272476]
[1644681257635,0.67093731,2883.5,2883.2,0.62272476]
[1644681257836,0.00950145,2883.5,2883.2,0.62272476]
[1644681258435,0.72402138,2883.4,2883.3,0.74798337]
[1644681258885,0.00950122,2883.5,2883.3,0.74798337]
[1644681259074,0.72402138,2883.4,2883.3,0.74798337]
[1644681259475,0.00115562,2883.3,2883.2,0.62272476]
[1644681259674,0.725177,2883.3,2883.2,1.37529918]
[1644681260074,0.725177,2883.3,2883.2,1.67529918]
[1644681260280,0.72067136,2883.3,2883.2,1.37529918]
[1644681260580,0.0095013,2883.4,2883.3,4.05027382]
[1644681260581,1.3e-06,2883.4,2883.3,4.05027382]
[1644681260781,1.3e-06,2883.4,2883.3,5.2525172]
[1644681260980,0.66143586,2884.0,2883.3,5.42460849]
[1644681261383,0.66143586,2884.0,2883.4,1.0]
[1644681262627,0.00950097,2883.8,2883.5,0.1733]
[1644681263232,9.7e-07,2883.8,2883.5,0.1733]
[1644681263434,0.66143586,2884.2,2883.6,0.5]
[1644681263634,0.66143586,2884.3,2883.7,0.1733]
[1644681263836,0.00950101,2883.8,2883.7,0.1733]
[1644681264032,0.00950101,2883.8,2883.7,0.6733]
[1644681264434,0.00950101,2883.8,2883.7,2.40232237]
[1644681264632,0.66569668,2884.4,2883.7,1.40232237]
[1644681264633,0.66143586,2884.4,2883.7,1.40232237]
[1644681264841,0.66143586,2884.4,2883.7,2.40232237]
[1644681265032,0.66143586,2884.4,2883.7,1.40232237]
[1644681265235,0.88588761,2884.6,2883.7,2.40232237]
[1644681265236,0.66143586,2884.3,2883.7,2.40232237]
[1644681266034,0.66143586,2884.3,2884.2,0.62114963]
[1644681266235,0.88162679,2884.5,2884.2,0.62114963]
[1644681266675,0.66145206,2884.4,2884.2,0.62114963]
[1644681267280,0.67095148,2884.4,2884.2,0.62114963]
[1644681268280,0.66145206,2884.4,2884.2,0.62114963]
[1644681268681,0.67095148,2884.4,2884.2,0.62114963]
[1644681269280,0.00949942,2884.4,2884.2,0.62114963]
[1644681269481,0.66145206,2884.5,2884.2,0.62114963]
[1644681269680,0.00949839,2884.4,2884.2,0.62114963]
[1644681270131,0.67095045,2884.4,2884.2,0.62114963]
[1644681270333,0.00949839,2884.4,2884.2,0.62114963]
[1644681270733,0.66145206,2884.3,2884.2,0.62114963]
[1644681270934,0.88588761,2884.6,2884.3,0.0288332]
[1644681270935,0.66145206,2884.4,2884.3,0.0288332]
[1644681271337,0.66145206,2884.5,2884.3,0.0288332]
[1644681271935,0.66145206,2884.5,2884.3,0.20092449]
[1644681272136,0.00950562,2884.5,2884.3,0.20092449]
[1644681273036,0.66181458,2884.7,2884.3,0.20092449]
[1644681273237,0.00979246,2884.5,2884.3,0.20092449]
[1644681274285,0.66181458,2884.7,2884.3,0.20092449]
[1644681274483,0.00979246,2884.5,2884.3,0.20092449]
[1644681275085,0.00979246,2884.5,2884.4,0.5]
[1644681275290,0.00979246,2884.5,2884.4,0.9733]
[1644681275588,0.00036252,2884.7,2884.4,1.44539129]
[1644681275789,0.00979242,2884.6,2884.4,0.84539129]
[1644681276392,0.00979242,2884.6,2884.4,0.6733]
[1644681276689,0.00036252,2884.7,2884.4,0.6733]
[1644681277090,0.00923596,2884.6,2884.4,0.6733]
[1644681277290,0.00923596,2884.6,2884.4,0.1733]
[1644681277824,0.00036252,2884.7,2884.4,0.1733]
[1644681278024,0.00036252,2884.7,2884.3,0.0288332]
[1644681280630,0.00995376,2884.6,2884.3,0.0288332]
[1644681280831,0.6924868,2884.5,2884.3,0.0288332]
[1644681281033,0.6924868,2884.5,2884.0,1.02026487]
[1644681281234,0.6924868,2884.5,2884.1,0.7719119]
[1644681281482,0.6924868,2884.5,2884.4,0.59564617]
[1644681281682,0.69284932,2884.7,2884.4,0.02667166]
[1644681281881,0.00942349,2884.4,2884.0,0.52026487]
[1644681282085,0.6924868,2884.3,2884.1,0.77440629]
[1644681282286,0.6924868,2884.3,2884.0,0.52026487]
[1644681282481,0.6924868,2884.3,2883.9,0.02883094]
[1644681282881,0.00426082,2884.6,2884.0,0.77626469]
[1644681282882,0.6924868,2884.2,2884.0,0.77626469]
[1644681283082,0.00036252,2884.7,2884.0,0.77626469]
[1644681283083,0.68806406,2884.1,2884.0,0.77626469]
[1644681283282,0.68806406,2884.2,2883.9,0.02883094]
[1644681283682,0.68806406,2884.2,2884.1,0.67675036]
[1644681284281,0.00036252,2884.7,2884.1,1.45269603]
[1644681284282,0.00942329,2884.3,2884.1,1.45269603]
[1644681284482,0.68806406,2884.2,2884.1,0.67675036]
[1644681286132,0.00942353,2884.3,2884.1,1.45275517]
[1644681286334,0.68812356,2884.2,2884.1,0.97675036]
[1644681286532,0.00036252,2884.7,2884.1,0.97675036]
[1644681286533,0.00950112,2884.3,2884.1,1.75264667]
[1644681286731,0.00950112,2884.3,2884.1,3.05264667]
[1644681287135,0.00950112,2884.3,2884.2,0.77589631]
[1644681287337,0.00950112,2884.3,2884.2,2.07589631]
[1644681287533,0.00036252,2884.7,2884.2,2.07589631]
[1644681287734,0.00036252,2884.7,2884.3,1.07589631]
[1644681287934,0.00036252,2884.7,2884.4,0.77589631]
[1644681287935,0.68852578,2884.7,2884.4,0.77589631]
[1644681288135,0.03799879,2884.8,2884.5,3.9733]
[1644681288334,0.03799879,2884.8,2884.5,4.2733]
[1644681288535,0.03799879,2884.8,2884.6,1.0]
[1644681288734,0.00928716,2885.1,2884.8,0.71463448]
[1644681289477,0.00928716,2885.1,2884.8,1.01463448]
[1644681289673,0.00928716,2885.1,2884.9,6.9326]
[1644681290074,8.716e-05,2885.1,2885.0,1.0]
[1644681290278,0.00957632,2885.1,2885.0,1.0]
[1644681290679,0.00957632,2885.1,2885.0,1.5]
[1644681291181,8.716e-05,2885.1,2885.0,1.5]
[1644681291382,8.716e-05,2885.1,2885.0,8.6057]
[1644681292635,8.716e-05,2885.1,2885.0,6.9324]
[1644681295841,0.66571288,2885.4,2885.0,6.9324]
[1644681296242,0.66857402,2885.2,2885.0,6.9324]
[1644681296476,3.56486013,2885.1,2885.0,6.9324]
[1644681296676,0.83231714,2885.1,2885.0,6.9324]
[1644681297477,0.65901714,2885.1,2885.0,6.9324]
[1644681297680,0.66613732,2885.2,2885.0,6.9324]
[1644681297878,0.65901714,2885.1,2885.0,6.9324]
[1644681298280,0.10766526,2885.1,2885.0,6.9324]
[1644681298480,0.00426082,2885.4,2885.1,0.62645047]
[1644681298681,0.00712018,2885.2,2885.1,0.62645047]
[1644681299586,0.88162679,2886.2,2885.1,0.62645047]
[1644681299784,1.47973688,2886.4,2885.1,0.62645047]
[1644681299785,0.00712018,2885.3,2885.1,0.62645047]
[1644681300633,0.00426082,2886.0,2885.1,0.62645047]
[1644681301038,0.00995999,2885.3,2885.1,0.62645047]
[1644681301735,0.00995999,2885.3,2885.1,0.05883372]
[1644681302037,0.00426082,2886.0,2885.2,5.6731]
[1644681302235,5.999e-05,2885.3,2885.2,3.0058]
[1644681302434,5.999e-05,2885.3,2885.2,8.13946]
[1644681302635,5.999e-05,2885.3,2885.2,23.88265129]
[1644681302841,0.88162679,2886.9,2885.3,3.3]
[1644681303038,0.88162679,2886.9,2886.0,5.0]
[1644681303238,1.75389677,2887.5,2886.1,1.53916]
[1644681303239,0.88162679,2887.1,2886.1,1.53916]
[1644681303436,1.30663688,2887.5,2886.1,1.6731]
[1644681303437,0.88162679,2887.3,2886.1,1.6731]
[1644681303636,0.88162679,2887.3,2886.1,1.9731]
[1644681303890,0.1731,2888.1,2886.2,5.17209129]
[1644681303891,0.88162679,2887.4,2886.2,5.17209129]
[1644681304178,0.88162679,2887.5,2886.3,0.6731]
[1644681304379,0.88162679,2887.4,2886.3,1.84519129]
[1644681304581,0.88162679,2887.2,2886.3,0.5]
[1644681304780,1.30663688,2887.4,2886.3,0.5]
[1644681304781,0.88162679,2887.1,2886.3,0.5]
[1644681305184,0.1731,2887.3,2886.8,0.62458627]
[1644681305586,0.88162679,2887.4,2886.8,0.62458627]
[1644681306189,0.1731,2887.6,2886.8,0.62458627]
[1644681306190,0.88162679,2887.5,2886.8,0.62458627]
[1644681307086,0.00998152,2887.3,2886.8,0.62458627]
[1644681307726,0.00998152,2887.3,2886.8,0.92458627]
[1644681308030,0.63180278,2887.2,2886.8,1.12458627]
[1644681308226,0.63180278,2887.1,2886.9,0.1731]
[1644681308427,0.63180278,2887.0,2886.9,0.1731]
[1644681309031,0.63180278,2887.1,2886.9,0.1731]
[1644681309228,0.69681783,2887.6,2886.9,0.1731]
[1644681309229,0.63180278,2887.0,2886.9,0.1731]
[1644681309528,0.00998172,2887.1,2886.9,3.71023527]
[1644681309730,0.63180278,2887.0,2886.9,0.1731]
[1644681309929,0.21305664,2887.0,2886.8,1.12458627]
[1644681310131,0.21305664,2887.0,2886.8,0.79768627]
[1644681310331,0.21305664,2887.0,2886.8,0.62458627]
[1644681310534,1.30663688,2887.8,2886.8,0.62458627]
[1644681310535,0.65689734,2887.2,2886.8,0.62458627]
[1644681310733,0.82999734,2887.2,2886.8,0.62458627]
[1644681310932,0.65689734,2887.3,2886.8,0.62458627]
[1644681311134,0.65689734,2887.1,2886.9,0.02469191]
[1644681311579,0.1731,2887.0,2886.9,0.02469191]
[1644681312381,0.00997381,2887.1,2886.9,0.02469191]
[1644681312582,0.65689734,2887.0,2886.9,0.02469191]
[1644681312780,0.65689734,2887.0,2885.7,1.00967634]
[1644681312781,0.02301125,2886.8,2885.4,8.92545821]
[1644681312982,0.6566563,2886.6,2885.4,7.19985821]
[1644681313183,0.6566563,2886.6,2885.7,0.00967634]
[1644681313184,0.1731,2886.5,2885.7,0.00967634]
[1644681313380,0.8297563,2886.5,2885.7,0.00967634]
[1644681313582,0.6566563,2886.5,2885.7,0.00967634]
[1644681313784,0.6566563,2886.5,2885.7,0.66663703]
[1644681313982,0.6566563,2886.5,2885.7,0.65696069]
[1644681314481,0.6566563,2886.5,2885.7,0.66663703]
[1644681314482,0.00997472,2886.2,2885.7,0.66663703]
[1644681315134,0.1731,2886.4,2885.7,0.65696069]
[1644681315539,0.00707241,2886.1,2885.7,0.65696069]
[1644681316339,0.1731,2886.4,2885.7,0.65696069]
[1644681316740,0.00683572,2886.0,2885.7,0.65696069]
[1644681317540,0.1731,2886.4,2885.7,0.65696069]
[1644681317941,0.00973355,2886.0,2885.7,0.66662126]
[1644681318143,0.00973355,2886.0,2885.8,3.6011152]
[1644681318348,3.355e-05,2886.0,2885.9,1.1731]
[1644681318541,3.355e-05,2886.0,2885.9,4.86251393]
[1644681318742,0.02301125,2886.8,2885.9,5.53460522]
[1644681319180,0.02301125,2886.8,2885.9,5.83460522]
[1644681319385,0.02301125,2886.8,2886.7,0.5690052]
[1644681319985,0.02301125,2886.8,2886.7,0.74109649]
[1644681320787,0.02301125,2886.8,2886.7,1.5690052]
[1644681320989,0.02301125,2886.8,2886.7,0.5690052]
[1644681321788,0.02301125,2886.8,2886.7,0.09510938]
[1644681323436,0.00996933,2886.9,2886.8,2.15]
[1644681323638,0.00426015,2887.4,2886.8,2.15]
[1644681323838,0.00996933,2886.9,2886.3,6.82617444]
[1644681324039,0.00996933,2886.9,2886.4,0.62991089]
[1644681324439,0.00996933,2886.9,2886.4,1.80200218]
[1644681324739,0.2987,2887.3,2886.4,0.62991089]
[1644681324940,0.00426015,2887.2,2886.4,0.62991089]
[1644681325141,0.0099302,2886.8,2886.4,0.62991089]
[1644681325940,0.00426015,2886.9,2886.4,0.62991089]
[1644681326142,0.00426015,2887.2,2886.4,0.62991089]
[1644681326385,0.00993025,2886.7,2886.4,0.62991089]
[1644681327186,0.02352963,2886.8,2886.4,0.62991089]
[1644681327589,0.0099303,2886.7,2886.4,0.62991089]
[1644681328391,0.02352963,2886.8,2886.4,0.62991089]
[1644681328991,0.00996954,2886.7,2886.4,0.62991089]
[1644681329195,0.00996954,2886.7,2886.5,4.14948045]
[1644681329494,0.00996954,2886.7,2886.4,0.62991089]
[1644681329692,0.02352963,2886.8,2886.4,0.62991089]
[1644681329892,0.00996949,2886.7,2886.4,0.62991089]
[1644681330547,0.03987196,2887.2,2886.6,3.3]
[1644681330747,0.03987196,2887.2,2886.7,4.47985101]
[1644681330948,0.59105717,2887.1,2886.7,0.5]
[1644681331151,0.59105717,2887.0,2886.5,3.2105]
[1644681331353,0.00426015,2887.0,2886.9,0.5601501]
[1644681331552,0.59110624,2887.0,2886.9,0.5601501]
[1644681331755,0.00426015,2887.4,2886.9,0.5601501]
[1644681331756,1.24776254,2887.3,2886.9,0.5601501]
[1644681331954,0.59110624,2887.2,2886.9,0.5601501]
[1644681332154,0.59110624,2887.1,2886.9,0.5601501]
[1644681332354,0.59110624,2887.0,2886.9,0.5601501]
[1644681332958,0.59110624,2887.0,2886.4,0.1731]
[1644681333257,0.00426015,2886.9,2886.4,0.1731]
[1644681333455,0.59110624,2886.8,2885.9,3.0449]
[1644681333656,0.59536639,2886.7,2885.9,3.0449]
[1644681333883,0.59110624,2886.6,2886.4,0.59151509]
[1644681334080,0.59110624,2886.5,2886.4,0.59151509]
[1644681334279,0.59110624,2886.5,2885.9,3.0449]
[1644681334480,0.8297563,2887.0,2885.9,3.0449]
[1644681334481,0.59536639,2886.4,2885.9,3.0449]
[1644681334680,0.59110624,2886.3,2885.8,0.50899769]
[1644681334882,0.00426015,2886.3,2886.2,0.00970791]
[1644681335080,0.00996877,2886.8,2886.2,0.00970791]
[1644681335081,0.01422892,2886.8,2886.2,0.00970791]
[1644681335283,1.44904195,2886.7,2886.2,0.00970791]
[1644681335484,0.5866521,2886.6,2886.2,0.00970791]
[1644681335685,0.58239195,2886.5,2885.4,7.06959997]
[1644681335887,4.16557299,2886.4,2885.4,6.9314]
[1644681336085,4.16557299,2886.4,2886.2,0.00970791]
[1644681336086,0.58239195,2886.3,2886.2,0.00970791]
[1644681336884,3.75220556,2886.6,2885.4,6.9314]
[1644681336885,0.58239195,2886.5,2885.4,6.9314]
[1644681337086,0.00426015,2886.2,2886.1,0.00970824]
[1644681337286,0.58239195,2886.2,2886.1,0.00970824]
[1644681337737,0.01422843,2886.8,2886.1,0.00970824]
[1644681337935,0.58243283,2886.7,2886.1,0.00970824]
[1644681338137,0.58243283,2886.7,2885.4,6.9314]
[1644681338138,0.00426015,2886.6,2885.4,6.9314]
[1644681338336,0.58243283,2886.5,2886.2,0.00970791]
[1644681338735,0.58243283,2886.4,2886.2,0.00970791]
[1644681338937,0.00996877,2886.8,2886.2,0.00970791]
[1644681339142,0.58264457,2886.7,2886.2,0.00970791]
[1644681339342,0.00426015,2886.6,2885.5,1.0]
[1644681339537,0.00426015,2886.6,2886.2,0.00970791]
[1644681339538,0.58264457,2886.5,2886.2,0.00970791]
[1644681339739,0.58264457,2886.7,2886.2,0.00970791]
[1644681339938,0.17736015,2886.6,2886.2,0.00970791]
[1644681340139,0.58264457,2886.5,2886.2,0.00970791]
[1644681340538,0.58690472,2886.6,2885.8,0.65192978]
[1644681340739,0.58264457,2886.5,2886.2,0.00970791]
[1644681340940,0.58264457,2886.4,2886.2,0.00970791]
[1644681341238,0.00996853,2886.8,2886.2,0.00970791]
[1644681341239,0.1731,2886.5,2886.2,0.00970791]
[1644681341477,0.60751876,2886.4,2886.2,0.03124563]
[1644681341684,0.60751876,2886.3,2886.2,0.01346755]
[1644681342080,0.60751876,2886.3,2886.2,0.02317546]
[1644681342883,0.60751876,2886.3,2886.2,0.01346755]
[1644681343581,0.8297563,2886.5,2886.2,0.01346755]
[1644681343582,1.26417506,2886.4,2886.2,0.01346755]
[1644681343782,0.60751876,2886.3,2886.2,0.01346755]
[1644681343982,0.6566563,2886.3,2886.2,0.01346755]
[1644681344185,0.60751876,2886.4,2886.2,0.01346755]
[1644681344382,1.26417506,2886.3,2886.2,0.02317562]
[1644681344583,0.60751876,2886.3,2886.2,0.02317562]
[1644681344984,0.6566563,2886.3,2886.2,0.02317562]
[1644681345232,0.6566563,2886.3,2886.2,0.01346755]
[1644681345631,0.60751876,2886.3,2886.2,0.01346755]
[1644681345832,1.26417506,2886.4,2886.2,0.01346755]
[1644681346035,6.2597722,2886.4,2886.2,0.01346755]
[1644681346234,0.60751876,2886.3,2886.2,0.01346755]
[1644681346435,1.26417506,2886.3,2886.2,0.01346755]
[1644681346636,1.26417506,2886.3,2886.2,0.02107268]
[1644681346840,0.60751876,2886.3,2886.2,0.03078075]
[1644681347237,4.19385535,2886.3,2886.2,0.00978075]
[1644681347437,5.07548214,2886.3,2886.2,0.00978075]
[1644681347639,4.19385535,2886.3,2886.2,0.00978075]
[1644681347836,4.19385535,2886.3,2886.2,7.268e-05]
[1644681349182,0.60751876,2886.3,2886.2,7.268e-05]
[1644681349683,1.48813473,2886.3,2886.2,7.268e-05]
[1644681350086,5.0701563,2886.3,2886.2,7.268e-05]
[1644681350385,1.48813473,2886.3,2886.2,7.268e-05]
[1644681350585,1.10751876,2886.3,2886.2,7.268e-05]
[1644681350785,2.71415564,2886.3,2886.1,0.00898092]
[1644681350984,6.90975278,2886.2,2886.1,0.00898092]
[1644681351186,7.40975278,2886.2,2886.1,0.00898092]
[1644681351386,1.73392,2886.0,2885.4,6.9314]
[1644681351587,4.99559714,2885.5,2885.4,6.9314]
[1644681351787,6.1031159,2885.5,2885.4,6.9314]
[1644681352636,6.1031159,2885.5,2884.3,0.1731]
[1644681352637,3.3,2885.4,2884.3,0.1731]
[1644681352835,0.66033058,2885.0,2884.3,0.1731]
[1644681353033,4.99559714,2884.7,2884.3,0.1731]
[1644681353234,0.60751876,2884.6,2884.3,0.1731]
[1644681354037,0.60751876,2884.6,2884.3,0.17600955]
[1644681354440,1.54327463,2884.6,2884.3,0.17600955]
[1644681354641,0.60751876,2884.5,2884.3,0.17600955]
[1644681354838,1.47479876,2884.5,2884.3,0.1731]
[1644681355039,5.6031159,2884.4,2884.3,0.1731]
[1644681355239,5.6031159,2884.4,2884.3,0.18279667]
[1644681355240,6.85256984,2884.4,2884.3,0.18279667]
[1644681355440,3.27800463,2884.4,2884.3,0.14361862]
[1644681355639,7.08771147,2884.4,2884.3,0.079066]
[1644681356239,7.08771147,2884.4,2884.3,0.06936933]
[1644681356495,7.051179,2884.4,2884.3,0.06936933]
[1644681356695,7.10332675,2884.4,2884.3,0.06936933]
[1644681356895,2.8,2884.3,2884.2,0.009697]
[1644681357096,10.12144291,2884.3,2884.2,0.009697]
[1644681357299,10.12144291,2884.3,2883.3,0.75027382]
[1644681357497,0.86738,2884.1,2883.4,0.1733]
[1644681357698,1.81947925,2884.1,2883.6,0.03879614]
[1644681357896,0.8674,2884.0,2883.6,0.03879614]
[1644681358102,1.81949925,2884.0,2883.6,0.03879614]
[1644681358503,1.81949925,2884.0,2883.4,0.1733]
[1644681358504,0.95209925,2884.0,2883.4,0.1733]
[1644681358701,0.95209925,2884.0,2883.3,0.75027382]